fUSD/lending_fUSD_20251225
["ID","MTS","AMOUNT","RATE_DAILY","PERIOD"]
[399717433,1766634638186,-11384.07679191,0.0001214,2]
[399717434,1766634638198,-39468.99506,0.0001214,2]
[399717435,1766634638210,-766.80359483,0.0001214,2]
[399717436,1766634638222,-358943.60087585,0.0001214,2]
[399717437,1766634638231,-206.98092921,0.0001214,2]
[399717438,1766634638241,-249.0,0.0001214,2]
[399717439,1766634638251,-6075.0654,0.0001214,2]
[399717440,1766634638260,-399.6802216,0.00012141,2]
[399717441,1766634638270,-582.62451362,0.00012141,2]
[399717442,1766634638281,-206.98092921,0.00012143,2]
[399717443,1766634638297,-300.0,0.00012178,2]
[399717445,1766634638307,-203.83328897,0.00012236,2]
[399717447,1766634638317,-2500.0,0.00012236,2]
[399717448,1766634638327,-150.0,0.00012237,2]
[399717449,1766634638337,-300.0,0.00012237,2]
[399717450,1766634638346,-1200.0,0.00012237,2]
[399717452,1766634638356,-2078.41,0.00012237,2]
[399717454,1766634638366,-203.83328897,0.00012238,2]
[399717456,1766634638375,-203.83328897,0.00012238,2]
[399717458,1766634638384,-500.0,0.0001224,2]
[399717459,1766634638399,-1000.0,0.0001224,2]
[399717461,1766634638417,-1000.0,0.00012241,2]
[399717464,1766634638429,-1000.0,0.00012242,2]
[399717466,1766634638440,-200.0,0.00012242,2]
[399717467,1766634638450,-582.62451362,0.00012242,2]
[399717469,1766634638460,-755.58555116,0.00012243,2]
[399717472,1766634638471,-166.66,0.00012329,2]
[399717474,1766634638480,-221.16710401,0.00012332,2]
[399717476,1766634638489,-999.99,0.00012335,2]
[399717477,1766634638499,-150.99,0.00012336,2]
[399717480,1766634638510,-9999.99,0.00012336,2]
[399717481,1766634638519,-200.0,0.00012336,2]
[399717484,1766634638529,-151.0,0.00012336,2]
[399717486,1766634638539,-151.0,0.00012336,2]
[399717487,1766634638548,-151.0,0.00012336,2]
[399717490,1766634638558,-151.0,0.00012336,2]
[399717491,1766634638567,-151.0,0.00012336,2]
[399717493,1766634638576,-151.0,0.00012336,2]
[399717495,1766634638586,-151.0,0.00012336,2]
[399717497,1766634638595,-500.0,0.00012336,2]
[399717498,1766634638605,-154.80758812,0.00012336,2]
[399717499,1766634638615,-151.0,0.00012336,2]
[399717500,1766634638625,-151.0,0.00012336,2]
[399717501,1766634638634,-500.0,0.00012336,2]
[399717502,1766634638644,-151.0,0.00012336,2]
[399717503,1766634638654,-151.0,0.00012336,2]
[399717504,1766634638664,-500.0,0.00012336,2]
[399717505,1766634638674,-500.0,0.00012336,2]
[399717506,1766634638683,-151.0,0.00012336,2]
[399717507,1766634638692,-151.0,0.00012336,2]
[399717508,1766634638702,-500.0,0.00012336,2]
[399717509,1766634638712,-500.0,0.00012336,2]
[399717510,1766634638722,-151.0,0.00012336,2]
[399717511,1766634638731,-151.0,0.00012336,2]
[399717512,1766634638741,-500.0,0.00012336,2]
[399717513,1766634638750,-500.0,0.00012336,2]
[399717514,1766634638759,-151.0,0.00012336,2]
[399717515,1766634638769,-500.0,0.00012336,2]
[399717516,1766634638778,-500.0,0.00012336,2]
[399717517,1766634638787,-151.0,0.00012336,2]
[399717518,1766634638797,-151.0,0.00012336,2]
[399717519,1766634638806,-500.0,0.00012336,2]
[399717520,1766634638815,-151.0,0.00012336,2]
[399717521,1766634638825,-500.0,0.00012336,2]
[399717522,1766634638835,-151.0,0.00012336,2]
[399717523,1766634638845,-500.0,0.00012336,2]
[399717524,1766634638855,-500.0,0.00012336,2]
[399717525,1766634638864,-151.0,0.00012336,2]
[399717526,1766634638874,-500.0,0.00012336,2]
[399717527,1766634638884,-500.0,0.00012336,2]
[399717528,1766634638894,-151.0,0.00012336,2]
[399717529,1766634638903,-500.0,0.00012336,2]
[399717530,1766634638959,-500.0,0.00012336,2]
[399717531,1766634638969,-151.0,0.00012336,2]
[399717532,1766634638979,-500.0,0.00012336,2]
[399717533,1766634638989,-151.0,0.00012336,2]
[399717534,1766634639003,-500.0,0.00012336,2]
[399717535,1766634639013,-151.0,0.00012336,2]
[399717536,1766634639023,-500.0,0.00012336,2]
[399717537,1766634639034,-151.0,0.00012336,2]
[399717538,1766634639044,-500.0,0.00012336,2]
[399717539,1766634639054,-151.0,0.00012336,2]
[399717540,1766634639064,-151.0,0.00012336,2]
[399717541,1766634639076,-500.0,0.00012336,2]
[399717542,1766634639087,-151.0,0.00012336,2]
[399717543,1766634639097,-151.0,0.00012336,2]
[399717544,1766634639107,-151.0,0.00012336,2]
[399717545,1766634639117,-312.30624764,0.00012336,2]
[399717546,1766634639127,-200.0,0.00012336,2]
[399717547,1766634639137,-207.4,0.00012336,2]
[399717548,1766634639146,-1462.52,0.00012342,2]
[399717549,1766634639156,-97859.91,0.00012342,2]
[399717550,1766634639165,-135893.9,0.00012342,2]
[399717551,1766634639175,-512.0,0.00012342,2]
[399717552,1766634639184,-47117.32,0.00012342,2]
[399717553,1766634639194,-1360.24,0.00012342,2]
[399717554,1766634639203,-9999.99,0.00012342,2]
[399717555,1766634639213,-9999.99,0.00012342,2]
[399717556,1766634639222,-150.0,0.00012342,2]
[399717557,1766634639233,-150.99,0.00012343,2]
[399717558,1766634639242,-309.16,0.00012343,2]
[399717559,1766634639252,-9999.99,0.00012343,2]
[399717560,1766634639262,-499.99,0.00012343,2]
[399717561,1766634639271,-299.99,0.00012343,2]
[399717562,1766634639280,-4999.99,0.00012343,2]
[399717563,1766634639290,-9999.99,0.00012343,2]
[399717564,1766634639299,-13938.24,0.00012343,2]
[399717565,1766634639308,-5431.02,0.00012343,2]
[399717566,1766634639318,-200.0,0.00012364,2]
[399717567,1766634639328,-1000.0,0.00012442,2]
[399717568,1766634639337,-21937.3066,0.00012442,2]
[399717569,1766634639347,-166.66,0.00012452,2]
[399717570,1766634639356,-796.0,0.00012474,2]
[399717571,1766634639366,-200.0,0.00012488,2]
[399717572,1766634639375,-449.0,0.00012488,2]
[399717573,1766634639384,-1546.0,0.00012499,2]
[399717574,1766634639395,-2078.41,0.00012511,2]
[399717575,1766634639404,-233.2121661,0.00012513,2]
[399717576,1766634639413,-500.0,0.00012514,2]
[399717577,1766634639423,-346214.46295844,0.00012517,2]
[399717578,1766634639432,-349.0,0.00012524,2]
[399717579,1766634639442,-1833.0,0.00012549,2]
[399717580,1766634639451,-1801.0,0.00012573,2]
[399717581,1766634639461,-166.66,0.00012575,2]
[399717582,1766634639470,-59031.03691798,0.0001258,2]
[399717583,1766634639480,-27127.34297352,0.0001258,2]
[399717584,1766634639489,-250.80019267,0.00012597,2]
[399717585,1766634639498,-594.0,0.00012598,2]
[399717586,1766634639508,-1021.0,0.00012623,2]
[399717587,1766634639517,-233.0,0.00012628,2]
[399717588,1766634639527,-201.0,0.00012653,2]
[399717589,1766634639536,-381.0,0.00012668,2]
[399717590,1766634639545,-150.0,0.00012672,2]
[399717591,1766634639554,-340.0,0.00012679,2]
[399717592,1766634639563,-1955.0,0.00012694,2]
[399717593,1766634639574,-166.66,0.00012699,2]
[399717594,1766634639583,-1181.0,0.00012719,2]
[399717595,1766634639592,-1077.0,0.00012744,2]
[399717596,1766634639601,-1178.0,0.00012769,2]
[399717597,1766634639610,-200.0,0.00012777,2]
[399717598,1766634639620,-2078.41,0.00012785,2]
[399717599,1766634639629,-500.0,0.00012788,2]
[399717600,1766634639639,-189.6601405,0.0001279,2]
[399717601,1766634639648,-568.0,0.00012795,2]
[399717602,1766634639658,-166.66,0.00012822,2]
[399717603,1766634639667,-200.0,0.00012884,2]
[399717604,1766634639677,-500.0,0.00012884,2]
[399717605,1766634639687,-200.0,0.00012884,2]
[399717606,1766634639696,-1330.25645744,0.00012907,2]
[399717607,1766634639705,-600.0,0.00012917,2]
[399717608,1766634639715,-600.0,0.00012917,2]
[399717609,1766634639724,-197.37,0.00012917,2]
[399717610,1766634639733,-523.79805247,0.00012929,2]
[399717611,1766634639743,-166.66,0.00012945,2]
[399717612,1766634639752,-299.35617731,0.0001305,2]
[399717613,1766634639762,-2078.41,0.00013059,2]
[399717614,1766634639771,-500.0,0.00013062,2]
[399717615,1766634639780,-164.06,0.00013093,2]
[399717616,1766634639789,-443.18,0.00013102,2]
[399717617,1766634639799,-755.58555115,0.00013106,2]
[399717618,1766634639808,-59031.03691798,0.0001312,2]
[399717619,1766634639818,-27127.34297352,0.0001312,2]
[399717620,1766634639828,-1227.28104739,0.00013127,2]
[399717621,1766634639837,-1000.0,0.00013143,2]
[399717622,1766634639846,-6548.66929039,0.00013185,2]
[399717623,1766634639855,-1852.42,0.00013214,2]
[399717624,1766634639865,-420.0,0.00013324,2]
[399717625,1766634639874,-420.0,0.00013324,2]
[399717626,1766634639883,-255.0,0.00013326,2]
[399717627,1766634639893,-2078.41,0.00013333,2]
[399717628,1766634639902,-500.0,0.00013336,2]
[399717629,1766634639912,-300.0,0.00013351,2]
[399717630,1766634639921,-250.0,0.00013351,2]
[399717631,1766634639931,-1680.0,0.00013353,2]
[399717632,1766634639941,-300.0,0.00013354,2]
[399717633,1766634639950,-250.0,0.00013354,2]
[399717634,1766634639960,-193.0,0.00013354,2]
[399717635,1766634639969,-420.0,0.0001343,2]
[399717636,1766634639979,-1680.0,0.0001343,2]
[399717638,1766634639988,-200.0,0.00013432,2]
[399717640,1766634640001,-500.0,0.00013432,2]
[399717642,1766634640010,-200.0,0.00013432,2]
[399717643,1766634640019,-300.0,0.00013459,2]
[399717644,1766634640029,-300.0,0.00013459,2]
[399717645,1766634640038,-207.4920134,0.00013459,2]
[399717646,1766634640049,-1330.25645744,0.00013573,2]
[399717647,1766634640058,-2078.41,0.00013607,2]
[399717648,1766634640067,-500.0,0.0001361,2]
[399717649,1766634640079,-59031.03691798,0.0001366,2]
[399717650,1766634640088,-27127.34297352,0.0001366,2]
[399717651,1766634640097,-500.0,0.00013698,2]
[399717652,1766634640106,-500.0,0.00013698,2]
[399717653,1766634640116,-500.0,0.00013698,2]
[399717654,1766634640125,-500.0,0.00013698,2]
[399717655,1766634640134,-500.0,0.00013698,2]
[399717656,1766634640143,-500.0,0.00013698,2]
[399717657,1766634640153,-500.0,0.00013698,2]
[399717658,1766634640163,-500.0,0.00013698,2]
[399717659,1766634640172,-500.0,0.00013698,2]
[399717660,1766634640182,-602.90869364,0.00013698,2]
[399717661,1766634640191,-500.0,0.00013698,2]
[399717662,1766634640200,-500.0,0.00013698,2]
[399717663,1766634640209,-500.0,0.00013698,2]
[399717664,1766634640219,-500.0,0.00013698,2]
[399717665,1766634640227,-500.0,0.00013698,2]
[399717666,1766634640237,-500.0,0.00013698,2]
[399717667,1766634640246,-500.0,0.00013698,2]
[399717668,1766634640255,-500.0,0.00013698,2]
[399717669,1766634640264,-500.0,0.00013698,2]
[399717670,1766634640273,-500.93767217,0.00013698,2]
[399717671,1766634640282,-500.0,0.00013698,2]
[399717672,1766634640291,-500.0,0.00013698,2]
[399717673,1766634640300,-500.0,0.00013698,2]
[399717674,1766634640310,-500.0,0.00013698,2]
[399717675,1766634640319,-500.0,0.00013698,2]
[399717676,1766634640328,-500.0,0.00013698,2]
[399717677,1766634640337,-500.0,0.00013698,2]
[399717678,1766634640346,-500.0,0.00013698,2]
[399717679,1766634640355,-511.55,0.00013698,2]
[399717680,1766634640364,-511.55,0.00013698,2]
[399717681,1766634640373,-511.55,0.00013698,2]
[399717682,1766634640382,-511.55,0.00013698,2]
[399717683,1766634640392,-511.55,0.00013698,2]
[399717684,1766634640401,-511.55,0.00013698,2]
[399717685,1766634640410,-511.55,0.00013698,2]
[399717686,1766634640419,-500.0,0.00013698,2]
[399717687,1766634640428,-502.00795802,0.00013698,2]
[399717688,1766634640437,-500.0,0.00013698,2]
[399717689,1766634640447,-500.0,0.00013698,2]
[399717690,1766634640456,-500.0,0.00013698,2]
[399717691,1766634640465,-500.0,0.00013698,2]
[399717692,1766634640475,-500.0,0.00013698,2]
[399717693,1766634640484,-500.0,0.00013698,2]
[399717694,1766634640495,-500.0,0.00013698,2]
[399717695,1766634640504,-500.0,0.00013698,2]
[399717696,1766634640513,-500.0,0.00013698,2]
[399717697,1766634640523,-500.0,0.00013698,2]
[399717698,1766634640532,-500.0,0.00013698,2]
[399717699,1766634640541,-500.0,0.00013698,2]
[399717700,1766634640550,-500.0,0.00013698,2]
[399717701,1766634640559,-500.0,0.00013698,2]
[399717702,1766634640568,-505.82761911,0.00013698,2]
[399717703,1766634640578,-500.0,0.00013698,2]
[399717704,1766634640587,-500.0,0.00013698,2]
[399717705,1766634640597,-500.0,0.00013698,2]
[399717706,1766634640606,-500.0,0.00013698,2]
[399717707,1766634640616,-500.0,0.00013698,2]
[399717708,1766634640625,-500.0,0.00013698,2]
[399717709,1766634640635,-500.0,0.00013698,2]
[399717710,1766634640644,-500.0,0.00013698,2]
[399717711,1766634640654,-500.0,0.00013698,2]
[399717712,1766634640663,-169.92268481,0.00013698,2]
[399717713,1766634640672,-500.0,0.00013698,2]
[399717714,1766634640681,-500.0,0.00013698,2]
[399717715,1766634640692,-500.0,0.00013698,2]
[399717716,1766634640701,-500.0,0.00013698,2]
[399717717,1766634640710,-500.0,0.00013698,2]
[399717718,1766634640720,-500.0,0.00013698,2]
[399717719,1766634640730,-500.0,0.00013698,2]
[399717720,1766634640740,-500.0,0.00013698,2]
[399717721,1766634640749,-500.0,0.00013698,2]
[399717722,1766634640759,-500.0,0.00013698,2]
[399717723,1766634640768,-500.0,0.00013698,2]
[399717724,1766634640777,-500.0,0.00013698,2]
[399717725,1766634640787,-500.0,0.00013698,2]
[399717726,1766634640796,-500.0,0.00013698,2]
[399717727,1766634640805,-500.0,0.00013698,2]
[399717728,1766634640814,-500.0,0.00013698,2]
[399717729,1766634640823,-500.0,0.00013698,2]
[399717730,1766634640833,-500.0,0.00013698,2]
[399717731,1766634640842,-500.0,0.00013698,2]
[399717732,1766634640851,-500.0,0.00013698,2]
[399717733,1766634640860,-500.0,0.00013698,2]
[399717734,1766634640870,-500.0,0.00013698,2]
[399717735,1766634640879,-283.61332376,0.00013698,2]
[399717736,1766634640889,-500.0,0.00013698,2]
[399717737,1766634640898,-500.0,0.00013698,2]
[399717738,1766634640908,-500.0,0.00013698,2]
[399717739,1766634640919,-500.0,0.00013698,2]
[399717740,1766634640928,-500.0,0.00013698,2]
[399717741,1766634640937,-500.0,0.00013698,2]
[399717742,1766634640946,-500.0,0.00013698,2]
[399717743,1766634640955,-500.0,0.00013698,2]
[399717744,1766634640965,-500.0,0.00013698,2]
[399717745,1766634640974,-488.88639166,0.00013698,2]
[399717746,1766634640984,-500.0,0.00013698,2]
[399717747,1766634640994,-500.0,0.00013698,2]
[399717748,1766634641008,-500.0,0.00013698,2]
[399717749,1766634641018,-500.0,0.00013698,2]
[399717750,1766634641028,-501.405217,0.00013698,2]
[399717751,1766634641038,-500.0,0.00013698,2]
[399717752,1766634641050,-500.0,0.00013698,2]
[399717753,1766634641060,-500.0,0.00013698,2]
[399717754,1766634641070,-500.0,0.00013698,2]
[399717755,1766634641079,-500.0,0.00013698,2]
[399717756,1766634641089,-500.0,0.00013698,2]
[399717757,1766634641099,-500.0,0.00013698,2]
[399717758,1766634641108,-559.97789648,0.00013698,2]
[399717759,1766634641118,-500.0,0.00013698,2]
[399717760,1766634641127,-500.0,0.00013698,2]
[399717761,1766634641137,-284.02576832,0.00013698,2]
[399717762,1766634641147,-500.0,0.00013698,2]
[399717763,1766634641156,-500.0,0.00013698,2]
[399717764,1766634641166,-500.0,0.00013698,2]
[399717765,1766634641175,-500.0,0.00013698,2]
[399717766,1766634641185,-500.0,0.00013698,2]
[399717767,1766634641195,-500.0,0.00013698,2]
[399717768,1766634641204,-500.0,0.00013698,2]
[399717769,1766634641214,-500.0,0.00013698,2]
[399717770,1766634641224,-786.09,0.00013698,2]
[399717771,1766634641234,-786.09,0.00013698,2]
[399717772,1766634641243,-786.09,0.00013698,2]
[399717773,1766634641254,-786.09,0.00013698,2]
[399717774,1766634641264,-786.09,0.00013698,2]
[399717775,1766634641273,-786.09,0.00013698,2]
[399717776,1766634641283,-786.09,0.00013698,2]
[399717777,1766634641293,-500.0,0.00013698,2]
[399717778,1766634641303,-500.0,0.00013698,2]
[399717779,1766634641314,-177.33477516,0.00013698,2]
[399717780,1766634641323,-523.3228728,0.00013698,2]
[399717781,1766634641333,-500.0,0.00013698,2]
[399717782,1766634641343,-500.0,0.00013698,2]
[399717783,1766634641352,-500.0,0.00013698,2]
[399717784,1766634641362,-500.0,0.00013698,2]
[399717785,1766634641371,-500.0,0.00013698,2]
[399717786,1766634641381,-643.35178864,0.00013698,2]
[399717787,1766634641391,-500.0,0.00013698,2]
[399717788,1766634641401,-500.0,0.00013698,2]
[399717789,1766634641410,-524.26514358,0.00013698,2]
[399717790,1766634641421,-500.0,0.00013698,2]
[399717791,1766634641433,-500.0,0.00013698,2]
[399717792,1766634641442,-500.0,0.00013698,2]
[399717793,1766634641452,-407.20578613,0.00013698,2]
[399717794,1766634641461,-500.0,0.00013698,2]
[399717795,1766634641471,-500.0,0.00013698,2]
[399717796,1766634641480,-500.0,0.00013698,2]
[399717797,1766634641490,-500.0,0.00013698,2]
[399717798,1766634641499,-500.0,0.00013698,2]
[399717799,1766634641509,-500.0,0.00013698,2]
[399717800,1766634641519,-500.0,0.00013698,2]
[399717801,1766634641530,-500.0,0.00013698,2]
[399717802,1766634641539,-500.0,0.00013698,2]
[399717803,1766634641550,-506.80328525,0.00013698,2]
[399717804,1766634641560,-13773.56,0.00013699,2]
[399717805,1766634641570,-708.1,0.00013699,2]
[399717806,1766634641580,-1000.0,0.00013699,2]
[399717807,1766634641590,-613.33,0.00013699,2]
[399717808,1766634641600,-9135.11,0.00013699,2]
[399717809,1766634641609,-9999.99,0.00013699,2]
[399717810,1766634641619,-23338.72,0.00013699,2]
[399717811,1766634641630,-500.0,0.00013699,2]
[399717812,1766634641640,-500.0,0.00013699,2]
[399717813,1766634641650,-500.0,0.00013699,2]
[399717814,1766634641659,-500.0,0.00013699,2]
[399717815,1766634641669,-500.0,0.00013699,2]
[399717816,1766634641679,-500.0,0.00013699,2]
[399717817,1766634641689,-350.0,0.00013699,2]
[399717818,1766634641699,-500.0,0.00013699,2]
[399717819,1766634641709,-500.0,0.00013699,2]
[399717820,1766634641719,-500.0,0.00013699,2]
[399717821,1766634641728,-500.0,0.00013699,2]
[399717822,1766634641737,-500.0,0.00013699,2]
[399717823,1766634641747,-511.55,0.00013795,2]
[399717824,1766634641756,-500.0,0.00013795,2]
[399717825,1766634641765,-2078.41,0.00013881,2]
[399717826,1766634641774,-500.0,0.00013884,2]
[399717827,1766634641783,-174.76631411,0.0001396,2]
[399717828,1766634641792,-500.0,0.0001396,2]
[399717829,1766634641802,-500.0,0.0001396,2]
[399717830,1766634641811,-500.0,0.0001396,2]
[399717831,1766634641821,-504.44244817,0.0001396,2]
[399717832,1766634641831,-500.0,0.0001396,2]
[399717833,1766634641840,-500.0,0.0001396,2]
[399717834,1766634641850,-755.58555115,0.00013969,2]
[399717835,1766634641860,-200.0,0.0001398,2]
[399717836,1766634641869,-500.0,0.0001398,2]
[399717837,1766634641878,-200.0,0.0001398,2]
[399717838,1766634641888,-500.0,0.00014063,2]
[399717839,1766634641897,-2078.41,0.00014155,2]
[399717840,1766634641906,-222.61399504,0.00014158,2]
[399717841,1766634641917,-59031.03691798,0.000142,2]
[399717842,1766634641927,-1330.25645744,0.00014238,2]
[399717843,1766634641937,-786.09,0.00014312,2]
[399717844,1766634641946,-600.0,0.00014418,2]
[399717845,1766634641956,-564.47,0.00014418,2]
[399717846,1766634641965,-2078.41,0.00014429,2]
[399717847,1766634641975,-10000.0,0.0001451,2]
[399717848,1766634641984,-433.0,0.00014513,2]
[399717849,1766634641994,-164.06,0.00014523,2]
[399717850,1766634642008,-200.0,0.00014528,2]
[399717851,1766634642018,-500.0,0.00014528,2]
[399717852,1766634642028,-200.0,0.00014528,2]
[399717853,1766634642039,-443.18,0.00014539,2]
[399717854,1766634642050,-500.0,0.0001457,2]
[399717855,1766634642059,-500.0,0.0001457,2]
[399717856,1766634642068,-500.0,0.0001457,2]
[399717857,1766634642079,-500.0,0.0001457,2]
[399717858,1766634642089,-500.0,0.0001457,2]
[399717859,1766634642099,-587.0,0.00014625,2]
[399717860,1766634642108,-587.0,0.00014625,2]
[399717861,1766634642118,-2351.0,0.00014688,2]
[399717862,1766634642127,-2078.41,0.00014703,2]
[399717863,1766634642136,-2351.0,0.0001474,2]
[399717864,1766634642146,-500.0,0.00014785,2]
[399717865,1766634642156,-500.0,0.00014785,2]
[399717866,1766634642166,-500.0,0.00014785,2]
[399717867,1766634642176,-500.0,0.00014785,2]
[399717868,1766634642186,-500.0,0.00014785,2]
[399717869,1766634642196,-511.55,0.00014829,2]
[399717870,1766634642205,-500.0,0.00014829,2]
[399717871,1766634642215,-755.58555115,0.00014832,2]
[399717872,1766634642225,-246.80340688,0.000149,2]
[399717873,1766634642236,-1330.25645744,0.00014904,2]
[399717874,1766634642246,-2078.41,0.00014977,2]
[399717875,1766634642255,-600.0,0.00015042,2]
[399717876,1766634642265,-564.47,0.00015042,2]
[399717877,1766634642275,-215.0738,0.00015075,2]
[399717878,1766634642285,-200.0,0.00015076,2]
[399717879,1766634642294,-500.0,0.00015076,2]
[399717880,1766634642304,-200.0,0.00015076,2]
[399717881,1766634642314,-164.06,0.00015095,2]
[399717882,1766634642323,-443.18,0.00015109,2]
[399717883,1766634642332,-2078.41,0.00015251,2]
[399717884,1766634642343,-526.94684762,0.0001527,2]
[399717885,1766634642352,-500.0,0.0001527,2]
[399717886,1766634642363,-500.0,0.0001527,2]
[399717887,1766634642372,-500.0,0.0001527,2]
[399717888,1766634642382,-500.0,0.0001527,2]
[399717889,1766634642392,-156.10212865,0.00015288,2]
[399717890,1766634642402,-150.0,0.00015288,2]
[399717891,1766634642412,-150.0,0.00015288,2]
[399717892,1766634642422,-183.15363215,0.00015288,2]
[399717893,1766634642431,-150.0,0.00015288,2]
[399717894,1766634642441,-150.0,0.00015288,2]
[399717895,1766634642451,-150.0,0.00015288,2]
[399717896,1766634642461,-150.0,0.00015288,2]
[399717897,1766634642470,-150.0,0.00015288,2]
[399717898,1766634642480,-150.0,0.00015288,2]
[399717899,1766634642489,-150.0,0.00015288,2]
[399717900,1766634642498,-150.0,0.00015288,2]
[399717901,1766634642507,-150.0,0.00015288,2]
[399717902,1766634642517,-150.0,0.00015288,2]
[399717903,1766634642526,-191.79160584,0.00015288,2]
[399717904,1766634642535,-150.0,0.00015288,2]
[399717905,1766634642545,-156.10212865,0.00015305,2]
[399717906,1766634642554,-150.0,0.00015307,2]
[399717907,1766634642564,-150.0,0.0001531,2]
[399717908,1766634642573,-150.0,0.00015312,2]
[399717909,1766634642582,-150.0,0.00015316,2]
[399717910,1766634642592,-150.0,0.00015318,2]
[399717911,1766634642601,-150.0,0.00015319,2]
[399717912,1766634642610,-156.10212865,0.00015322,2]
[399717913,1766634642620,-150.0,0.00015327,2]
[399717914,1766634642629,-150.0,0.00015332,2]
[399717915,1766634642638,-150.0,0.00015336,2]
[399717916,1766634642648,-156.10212865,0.00015339,2]
[399717917,1766634642658,-150.0,0.00015344,2]
[399717918,1766634642667,-150.0,0.00015345,2]
[399717919,1766634642676,-150.0,0.00015346,2]
[399717920,1766634642686,-150.0,0.00015348,2]
[399717921,1766634642695,-150.0,0.00015351,2]
[399717922,1766634642704,-150.0,0.00015355,2]
[399717923,1766634642713,-156.10212865,0.00015356,2]
[399717924,1766634642723,-150.0,0.0001536,2]
[399717925,1766634642732,-150.0,0.00015366,2]
[399717926,1766634642742,-150.0,0.00015369,2]
[399717927,1766634642751,-156.10212865,0.00015373,2]
[399717928,1766634642760,-150.0,0.00015374,2]
[399717929,1766634642770,-150.0,0.00015377,2]
[399717930,1766634642779,-500.0,0.00015377,2]
[399717931,1766634642788,-1109.00444245,0.00015377,2]
[399717933,1766634642798,-150.0,0.00015379,2]
[399717935,1766634642807,-150.0,0.00015382,2]
[399717937,1766634642816,-150.0,0.00015385,2]
[399717938,1766634642826,-150.0,0.00015385,2]
[399717939,1766634642836,-156.10212865,0.00015391,2]
[399717940,1766634642845,-150.0,0.00015399,2]
[399717941,1766634642855,-150.0,0.00015401,2]
[399717942,1766634642866,-150.0,0.00015403,2]
[399717943,1766634642875,-150.0,0.00015405,2]
[399717944,1766634642885,-156.10212865,0.00015408,2]
[399717945,1766634642895,-150.0,0.00015409,2]
[399717946,1766634642905,-150.0,0.00015409,2]
[399717947,1766634642915,-150.0,0.00015413,2]
[399717948,1766634642925,-150.0,0.00015418,2]
[399717949,1766634642934,-150.0,0.00015422,2]
[399717950,1766634642944,-150.0,0.00015424,2]
[399717951,1766634642953,-156.10212865,0.00015425,2]
[399717952,1766634642963,-150.0,0.00015432,2]
[399717953,1766634642973,-150.0,0.00015433,2]
[399717955,1766634642983,-150.0,0.00015439,2]
[399717956,1766634642994,-156.10212865,0.00015442,2]
[399717957,1766634643008,-150.0,0.00015444,2]
[399717958,1766634643018,-150.0,0.00015444,2]
[399717959,1766634643028,-150.0,0.00015445,2]
[399717960,1766634643037,-150.0,0.00015449,2]
[399717961,1766634643049,-150.0,0.00015458,2]
[399717962,1766634643226,-150.0,0.00015458,2]
[399717963,1766634643237,-156.10212865,0.00015459,2]
[399717964,1766634643247,-150.0,0.0001546,2]